[Event "WSCC 65 Open 2017"]
[Site "?"]
[Date "2017.11.09"]
[Round "3"]
[White "Komljenovic, Davorin"]
[Black "Hartung-Nielsen, Jens"]
[Result "1-0"]
[ECO "E35"]
[WhiteElo "2379"]
[BlackElo "2204"]
[PlyCount "109"]
[EventDate "2017.??.??"]
[EventType "swiss"]
[EventCountry "ITA"]
[SourceTitle "Acqui Terme"]
[TimeControl "40/5400+30:1800+30"]
[WhiteClock "0:37:07"]
[BlackClock "0:21:50"]

1. d4 {[%emt 0:01:38]} Nf6 {[%emt 0:00:12]} 2. c4 {[%emt 0:00:07]} e6 {[%emt 0:00:07]} 3. Nc3 {[%emt 0:00:17]} Bb4 {[%emt 0:00:08]} 4. Qc2 {[%emt 0:00:04]} d5 {[%emt 0:00:08]} 5. cxd5 {[%emt 0:07:42]} exd5 {[%emt 0:00:08]} 6. Bg5 {[%emt 0:04:35]} h6 {[%emt 0:00:25]} 7. Bxf6 {[%emt 0:00:21]} Qxf6 {[%emt 0:00:06]} 8. e3 {[%emt 0:00:07]} O-O {[%emt 0:01:15]} 9. Nf3 {[%emt 0:00:45]} c5 {[%emt 0:03:15]} 10. a3 {[%emt 0:06:51]} Bxc3+ {[%emt 0:01:14]} 11. Qxc3 {[%emt 0:00:44]} b6 {[%emt 0:12:29]} 12. dxc5 {[%emt 0:25:22]} Qxc3+ {[%emt 0:00:07]} 13. bxc3 {[%emt 0:00:02]} bxc5 {[%emt 0:00:10]} 14. Rd1 {[%emt 0:00:04]} Be6 {[%emt 0:03:59]} 15. Ne5 {[%emt 0:05:53]} Rd8 {[%emt 0:04:18]} 16. Bb5 {[%emt 0:12:53]} a6 {[%emt 0:02:09]} 17. Ba4 {[%emt 0:00:02]} Ra7 {[%emt 0:15:08]} 18. O-O {[%emt 0:02:41]} f6 {[%emt 0:10:22]} 19. Nd3 {[%emt 0:05:35]} Bf7 {[%emt 0:03:06]} 20. Nf4 {[%emt 0:07:11]} g5 {[%emt 0:00:55]} 21. Ne2 {[%emt 0:00:11]} Nd7 {[%emt 0:04:10]} 22. Ng3 {[%emt 0:01:53]} Be6 {[%emt 0:03:59]} 23. e4 {[%emt 0:04:15]} Nb6 {[%emt 0:01:57]} 24. exd5 {[%emt 0:01:59]} Rxd5 {[%emt 0:05:37]} 25. Ne4 {[%emt 0:00:23]} Kf7 {[%emt 0:02:28]} 26. Bc2 {[%emt 0:02:22]} Nc4 {[%emt 0:08:59]} 27. Rxd5 {[%emt 0:04:00]} Bxd5 {[%emt 0:00:06]} 28. Bb3 {[%emt 0:00:17]} Bxe4 {[%emt 0:00:10]} 29. Bxc4+ {[%emt 0:00:06]} Kg6 {[%emt 0:00:27]} 30. Re1 {[%emt 0:00:18]} Bc6 {[%emt 0:02:02]} 31. Re6 {[%emt 0:02:05]} Bb5 {[%emt 0:00:19]} 32. Bd5 {[%emt 0:00:06]} c4 {[%emt 0:03:25]} 33. g4 {[%emt 0:01:16]} Rd7 {[%emt 0:00:35]} 34. Be4+ {[%emt 0:00:09]} Kf7 {[%emt 0:00:30]} 35. Rb6 {[%emt 0:00:03]} Rd1+ {[%emt 0:01:46]} 36. Kg2 {[%emt 0:00:03]} Rc1 {[%emt 0:01:11]} 37. Bd5+ Kg7 {[%emt 0:04:27]} 38. Rb7+ {[%emt 0:00:52]} Kh8 {[%emt 0:00:19]} 39. Rf7 {[%emt 0:00:18]} Rxc3 {[%emt 0:00:22]} 40. Rxf6 {[%emt 0:01:02]} Kg7 {[%emt 0:30:57]} 41. Rf7+ {[%emt 0:30:29]} Kh8 {[%emt 0:02:56]} 42. Be4 {[%emt 0:02:03]} Kg8 {[%emt 0:00:27]} 43. Rf6 {[%emt 0:00:05]} Rxa3 {[%emt 0:03:25]} 44. Rxh6 {[%emt 0:00:04]} Be8 {[%emt 0:00:55]} 45. Re6 {[%emt 0:00:22]} Bd7 {[%emt 0:00:00]} 46. Rg6+ {[%emt 0:00:00]} Kf7 {[%emt 0:00:00]} 47. Rxg5 {[%emt 0:00:00]} c3 {[%emt 0:00:00]} 48. f3 {[%emt 0:00:00]} Ra2+ {[%emt 0:00:00]} 49. Kg3 {[%emt 0:00:00]} Ra1 {[%emt 0:00:00]} 50. h4 {[%emt 0:00:00]} a5 {[%emt 0:00:00]} 51. Rc5 {[%emt 0:00:00]} a4 {[%emt 0:00:00]} 52. Rxc3 {[%emt 0:00:00]} a3 {[%emt 0:00:00]} 53. Bd5+ {[%emt 0:00:00]} Ke7 {[%emt 0:00:00]} 54. Kf4 {[%emt 0:00:00]} Kd6 {[%emt 0:00:00]} 55. Bg8 {[%emt 0:00:00] Kd5 Ke4+} 1-0

[Event "WSCC 65 Open 2017"]
[Site "?"]
[Date "2017.11.09"]
[Round "3"]
[White "Renman, Nils-Gustaf"]
[Black "Haubt, Georg"]
[Result "1-0"]
[ECO "D02"]
[WhiteElo "2368"]
[BlackElo "2195"]
[PlyCount "67"]
[EventDate "2017.??.??"]
[EventType "swiss"]
[EventCountry "ITA"]
[SourceTitle "Acqui Terme"]
[TimeControl "40/5400+30:1800+30"]

1. d4 d5 2. Nf3 Nc6 3. e3 Bg4 4. Be2 Nf6 5. c4 e6 6. h3 Bh5 7. Qb3 Bb4+ 8. Nc3 dxc4 9. Qxc4 O-O 10. O-O Re8 11. Rd1 Qe7 12. Bd2 a6 13. a3 Bxc3 14. Bxc3 Ne4 15. Be1 Rad8 16. Rac1 Ng5 17. Nxg5 Bxe2 18. Qxe2 Qxg5 19. Rc4 Rd7 20. Rdc1 Qd8 21. Rxc6 bxc6 22. Qxa6 e5 23. Bc3 e4 24. Bb4 f5 25. Qxc6 f4 26. Rc5 fxe3 27. fxe3 Rf7 28. Rd5 Qc8 29. Re5 Rxe5 30. dxe5 h6 31. e6 Rf6 32. Qd7 Qa6 33. e7 Qf1+ 34. Kh2 1-0

[Event "WSCC 65 Open 2017"]
[Site "?"]
[Date "2017.11.09"]
[Round "3"]
[White "Piasetski, Leon"]
[Black "Privara, Igor"]
[Result "1-0"]
[ECO "A06"]
[WhiteElo "2269"]
[BlackElo "2184"]
[PlyCount "98"]
[EventDate "2017.??.??"]
[EventType "swiss"]
[EventCountry "ITA"]
[SourceTitle "Acqui Terme"]
[TimeControl "40/5400+30:1800+30"]

1. Nf3 d5 2. g3 Nf6 3. Bg2 c5 4. c4 e6 5. O-O Be7 6. cxd5 exd5 7. d4 Nc6 8. dxc5 Bxc5 9. a3 a6 10. b4 Ba7 11. Nc3 d4 12. Na4 O-O 13. Bb2 Qd6 14. Rc1 Rd8 15. Qc2 Bg4 16. Rfd1 Rac8 17. Nc5 Qe7 18. Qb3 Bxc5 19. Rxc5 Qxe2 20. Re1 Be6 21. Rxe2 Bxb3 22. Nxd4 Nxd4 23. Bxd4 Rxc5 24. bxc5 Rxd4 25. Bxb7 Rd1+ 26. Kg2 Bd5+ 27. Bxd5 Rxd5 28. Rb2 Kf8 29. Rb6 Rxc5 30. Rxa6 Ke7 31. h3 Kd7 32. Rb6 Nd5 33. Rb7+ Rc7 34. Rb3 Rc3 35. Rxc3 Nxc3 36. Kf3 Kd6 37. Kf4 Kd5 38. g4 h6 39. h4 g6 40. h5 Ke6 41. hxg6 fxg6 42. Ke3 g5 43. Kd3 Nd1 44. f3 Kd5 45. Ke2 Nb2 46. Kf2 Kd4 47. Ke2 Ke5 48. Kf2 Kf4 49. Ke2 Ke5 1-0

[Event "WSCC 65 Open 2017"]
[Site "?"]
[Date "2017.11.09"]
[Round "3"]
[White "Gutkin, Boris"]
[Black "Svensson, Soren"]
[Result "1-0"]
[ECO "D48"]
[WhiteElo "2250"]
[BlackElo "2009"]
[PlyCount "149"]
[EventDate "2017.??.??"]
[EventType "swiss"]
[EventCountry "ITA"]
[SourceTitle "Acqui Terme"]
[TimeControl "40/5400+30:1800+30"]
[WhiteClock "0:07:50"]
[BlackClock "0:00:44"]

1. d4 {[%emt 0:00:00]} d5 {[%emt 0:00:20]} 2. Nf3 {[%emt 0:00:07]} Nf6 {[%emt 0:00:34]} 3. c4 {[%emt 0:00:26]} e6 {[%emt 0:00:18]} 4. Nc3 {[%emt 0:02:14]} c6 {[%emt 0:00:24]} 5. e3 {[%emt 0:00:51]} Nbd7 {[%emt 0:00:25]} 6. Bd3 {[%emt 0:01:13]} dxc4 {[%emt 0:00:29]} 7. Bxc4 {[%emt 0:00:12]} b5 {[%emt 0:00:20]} 8. Bd3 {[%emt 0:09:00]} a6 {[%emt 0:01:21]} 9. a4 {[%emt 0:05:09]} b4 {[%emt 0:03:42]} 10. Ne4 {[%emt 0:00:29]} Bb7 {[%emt 0:05:34]} 11. b3 {[%emt 0:06:12]} Nxe4 {[%emt 0:05:37]} 12. Bxe4 {[%emt 0:00:12]} Nf6 {[%emt 0:01:27]} 13. Bd3 {[%emt 0:01:03]} c5 {[%emt 0:07:46]} 14. Bb2 {[%emt 0:01:13]} cxd4 {[%emt 0:06:54]} 15. Bxd4 {[%emt 0:06:08]} Bd6 {[%emt 0:05:20]} 16. Qe2 {[%emt 0:09:47]} Qe7 {[%emt 0:04:49]} 17. e4 {[%emt 0:08:03]} e5 {[%emt 0:01:04]} 18. Bb2 {[%emt 0:00:20]} O-O {[%emt 0:01:32]} 19. O-O {[%emt 0:02:53]} Nd7 {[%emt 0:01:43]} 20. Nd2 {[%emt 0:05:58]} Nc5 {[%emt 0:06:06]} 21. Bc4 {[%emt 0:00:21]} Rad8 {[%emt 0:10:12]} 22. Rfd1 {[%emt 0:04:18]} Bb8 {[%emt 0:02:53]} 23. f3 {[%emt 0:05:12]} Rd7 {[%emt 0:01:09]} 24. Nf1 {[%emt 0:04:21]} Rfd8 {[%emt 0:04:31]} 25. Ne3 {[%emt 0:03:33]} Ne6 {[%emt 0:09:23]} 26. Rxd7 {[%emt 0:11:03]} Rxd7 {[%emt 0:00:21]} 27. g3 {[%emt 0:04:25]} Ba7 {[%emt 0:02:47]} 28. Kg2 {[%emt 0:01:24]} Bd4 {[%emt 0:05:18]} 29. Nf5 {[%emt 0:02:38]} Qc5 {[%emt 0:00:59]} 30. Rd1 {[%emt 0:04:20]} Qb6 {[%emt 0:06:57]} 31. Bxe6 {[%emt 0:01:03]} fxe6 {[%emt 0:01:10]} 32. Nxd4 {[%emt 0:00:43]} exd4 {[%emt 0:00:08]} 33. Qc4 {[%emt 0:00:22]} Rc7 {[%emt 0:01:41]} 34. Qxd4 {[%emt 0:00:42]} Qxd4 {[%emt 0:02:19]} 35. Bxd4 {[%emt 0:00:12]} Rd7 {[%emt 0:00:40]} 36. Rd2 {[%emt 0:00:09]} e5 {[%emt 0:01:05]} 37. Bc3 {[%emt 0:00:56]} Rxd2+ {[%emt 0:00:18]} 38. Bxd2 {[%emt 0:00:01]} a5 {[%emt 0:00:10]} 39. Be3 {[%emt 0:00:19]} Bc8 {[%emt 0:00:16]} 40. Bb6 {[%emt 0:00:10]} Be6 {[%emt 0:31:21]} 41. Bxa5 {[%emt 0:30:19]} Bxb3 {[%emt 0:00:00]} 42. Bxb4 {[%emt 0:00:00]} Bxa4 {[%emt 0:00:00]} 43. Bd6 {[%emt 0:00:00]} Kf7 {[%emt 0:00:00]} 44. Bxe5 {[%emt 0:00:00]} h5 {[%emt 0:00:00]} 45. Kf2 {[%emt 0:00:00]} g6 {[%emt 0:00:00]} 46. Ke3 {[%emt 0:00:00]} Ke6 {[%emt 0:00:00]} 47. Bc7 {[%emt 0:00:00]} Bb3 {[%emt 0:00:00]} 48. Kf4 {[%emt 0:00:00]} Bd1 {[%emt 0:00:00]} 49. Bd8 {[%emt 0:00:00]} Be2 {[%emt 0:00:00]} 50. Ba5 {[%emt 0:00:00]} Bd1 {[%emt 0:00:00]} 51. Bc3 {[%emt 0:00:00]} Be2 {[%emt 0:00:00]} 52. Ke3 {[%emt 0:00:00]} Bd1 {[%emt 0:00:00]} 53. h3 {[%emt 0:00:00]} Ba4 {[%emt 0:00:00]} 54. Ba5 {[%emt 0:00:00]} Bb5 {[%emt 0:00:00]} 55. g4 {[%emt 0:00:00]} hxg4 {[%emt 0:00:00]} 56. hxg4 {[%emt 0:00:00]} Ba4 {[%emt 0:00:00]} 57. f4 {[%emt 0:00:00]} Bd1 {[%emt 0:00:00]} 58. f5+ {[%emt 0:00:00]} gxf5 {[%emt 0:00:00]} 59. gxf5+ {[%emt 0:00:00]} Kf7 {[%emt 0:00:00]} 60. Kf4 {[%emt 0:00:00]} Bc2 {[%emt 0:00:29]} 61. Bc3 {[%emt 0:00:00]} Bd3 {[%emt 0:00:34]} 62. e5 {[%emt 0:00:00]} Bc4 {[%emt 0:01:08]} 63. Ke4 {[%emt 0:00:00]} Bb3 {[%emt 0:00:28]} 64. Ke3 {[%emt 0:00:00]} Ba2 {[%emt 0:03:11]} 65. Be1 {[%emt 0:06:15]} Bb3 {[%emt 0:04:04]} 66. Bh4 {[%emt 0:00:10]} Bc4 {[%emt 0:00:50]} 67. Kd4 {[%emt 0:00:13]} Bb3 {[%emt 0:00:16]} 68. Kc5 {[%emt 0:00:13]} Ke8 {[%emt 0:01:49]} 69. Kd6 {[%emt 0:00:30]} Bf7 {[%emt 0:01:25]} 70. Bg5 {[%emt 0:00:16]} Bh5 {[%emt 0:00:28]} 71. e6 {[%emt 0:02:51]} Bg4 {[%emt 0:00:34]} 72. f6 {[%emt 0:00:10]} Bh5 {[%emt 0:00:08]} 73. Bh6 {[%emt 0:00:20]} Bg6 {[%emt 0:00:09]} 74. Ke5 {[%emt 0:00:11]} Bh5 {[%emt 0:01:50]} 75. Ke4 1-0

[Event "WSCC 65 Open 2017"]
[Site "?"]
[Date "2017.11.09"]
[Round "3"]
[White "Trois, Francisco R T"]
[Black "Shevelev, Arkady"]
[Result "0-1"]
[ECO "A07"]
[WhiteElo "2184"]
[BlackElo "2280"]
[PlyCount "82"]
[EventDate "2017.??.??"]
[EventType "swiss"]
[EventCountry "ITA"]
[SourceTitle "Acqui Terme"]
[TimeControl "40/5400+30:1800+30"]
[WhiteClock "0:20:01"]
[BlackClock "0:30:32"]

1. Nf3 {[%emt 0:00:00]} Nf6 {[%emt 0:00:27]} 2. g3 {[%emt 0:01:23]} d5 {[%emt 0:01:03]} 3. Bg2 {[%emt 0:00:47]} c6 {[%emt 0:00:27]} 4. O-O {[%emt 0:00:47]} Bg4 {[%emt 0:00:10]} 5. c4 {[%emt 0:02:42]} e6 {[%emt 0:01:36]} 6. cxd5 {[%emt 0:15:56]} exd5 {[%emt 0:00:21]} 7. Qb3 {[%emt 0:00:06]} Qb6 {[%emt 0:01:41]} 8. Qc2 {[%emt 0:00:25]} Nbd7 {[%emt 0:03:45]} 9. d3 {[%emt 0:00:33]} Bd6 {[%emt 0:01:52]} 10. Nc3 {[%emt 0:00:44]} O-O {[%emt 0:00:41]} 11. e4 {[%emt 0:01:54]} dxe4 {[%emt 0:07:07]} 12. dxe4 {[%emt 0:00:24]} Rfe8 {[%emt 0:07:04]} 13. h3 {[%emt 0:03:46]} Bxf3 {[%emt 0:06:42]} 14. Bxf3 Ne5 15. Be2 {[%emt 0:06:10]} Bb4 {[%emt 0:02:14]} 16. Kg2 {[%emt 0:12:49]} Bxc3 {[%emt 0:07:26]} 17. bxc3 {[%emt 0:00:10]} Qc5 {[%emt 0:01:52]} 18. Be3 {[%emt 0:06:56]} Qe7 {[%emt 0:00:39]} 19. f3 {[%emt 0:00:08]} Ng6 {[%emt 0:04:57]} 20. Rfe1 {[%emt 0:00:28]} b6 {[%emt 0:05:53]} 21. Rad1 {[%emt 0:00:12]} Rad8 {[%emt 0:00:33]} 22. Rxd8 {[%emt 0:01:43]} Rxd8 {[%emt 0:00:11]} 23. Rd1 {[%emt 0:02:53]} h6 {[%emt 0:04:31]} 24. Rxd8+ {[%emt 0:00:39]} Qxd8 {[%emt 0:00:02]} 25. Qa4 {[%emt 0:02:21]} Qc7 {[%emt 0:01:34]} 26. f4 {[%emt 0:02:35]} b5 {[%emt 0:04:47]} 27. Qd4 {[%emt 0:00:30]} a6 {[%emt 0:02:42]} 28. Bf3 {[%emt 0:03:53]} Qa5 {[%emt 0:00:49]} 29. Qd2 {[%emt 0:00:43]} Qa4 {[%emt 0:00:20]} 30. Bd4 {[%emt 0:00:29]} Nf8 31. Qb2 Ne6 {[%emt 0:04:21]} 32. Qb3 {[%emt 0:07:59]} Qxb3 {[%emt 0:00:58]} 33. axb3 {[%emt 0:00:01]} Nxd4 {[%emt 0:00:36]} 34. cxd4 {[%emt 0:00:01]} a5 {[%emt 0:00:27]} 35. d5 {[%emt 0:06:01]} cxd5 {[%emt 0:00:02]} 36. exd5 {[%emt 0:00:06]} a4 {[%emt 0:01:32]} 37. bxa4 {[%emt 0:02:22]} bxa4 {[%emt 0:00:01]} 38. Bd1 {[%emt 0:01:06]} a3 {[%emt 0:00:07]} 39. Bb3 {[%emt 0:00:08]} Ne4 {[%emt 0:00:12]} 40. d6 {[%emt 0:00:16]} Nxd6 {[%emt 0:30:15]} 41. Kf3 {[%emt 0:30:23]} Nb5 {[%emt 0:00:31]} 0-1

[Event "WSCC 65 Open 2017"]
[Site "?"]
[Date "2017.11.09"]
[Round "3"]
[White "Beltz, Robert"]
[Black "Vasiukov, Evgeni"]
[Result "0-1"]
[ECO "A04"]
[WhiteElo "2158"]
[BlackElo "2404"]
[PlyCount "61"]
[EventDate "2017.??.??"]
[EventType "swiss"]
[EventCountry "ITA"]
[SourceTitle "Acqui Terme"]
[TimeControl "40/5400+30:1800+30"]
[WhiteClock "0:16:20"]
[BlackClock "0:11:17"]

1. Nf3 {[%emt 0:00:00]} f5 {[%emt 0:00:46]} 2. c4 {[%emt 0:00:15]} Nf6 {[%emt 0:00:36]} 3. Nc3 {[%emt 0:00:10]} d6 {[%emt 0:00:57]} 4. d4 {[%emt 0:00:26]} c6 {[%emt 0:03:30]} 5. Qc2 {[%emt 0:11:01]} Na6 {[%emt 0:14:37]} 6. a3 {[%emt 0:01:57]} g6 {[%emt 0:11:11]} 7. h4 {[%emt 0:10:18]} Bg7 {[%emt 0:04:10]} 8. Bg5 {[%emt 0:06:25]} Qa5 {[%emt 0:05:43]} 9. Bd2 {[%emt 0:02:22]} Qc7 {[%emt 0:03:50]} 10. b4 {[%emt 0:14:14]} e5 {[%emt 0:00:47]} 11. dxe5 {[%emt 0:00:45]} dxe5 {[%emt 0:00:04]} 12. c5 {[%emt 0:00:01]} e4 {[%emt 0:03:38]} 13. Ng5 {[%emt 0:03:48]} Qe5 {[%emt 0:17:19]} 14. Rc1 {[%emt 0:03:08]} Nc7 {[%emt 0:00:53]} 15. e3 {[%emt 0:02:53]} h6 {[%emt 0:06:15]} 16. Nh3 {[%emt 0:01:11]} Be6 {[%emt 0:00:40]} 17. Ne2 {[%emt 0:07:16]} Nfd5 {[%emt 0:01:47]} 18. Nhf4 {[%emt 0:01:03]} Bf7 {[%emt 0:00:55]} 19. Nxd5 {[%emt 0:04:18]} Nxd5 {[%emt 0:00:14]} 20. Nd4 {[%emt 0:01:14]} f4 {[%emt 0:01:37]} 21. Rh3 {[%emt 0:03:43]} O-O {[%emt 0:04:15]} 22. Ne2 {[%emt 0:03:33]} fxe3 {[%emt 0:00:09]} 23. Bxe3 {[%emt 0:00:05]} Nxe3 {[%emt 0:04:43]} 24. Rxe3 {[%emt 0:02:24]} Bd5 {[%emt 0:00:18]} 25. Ng3 {[%emt 0:00:33]} Qf4 {[%emt 0:01:12]} 26. Nxe4 {[%emt 0:04:33]} Bxe4 {[%emt 0:01:52]} 27. Rxe4 {[%emt 0:00:04]} Bc3+ {[%emt 0:00:11]} 28. Kd1 {[%emt 0:00:47]} Rad8+ {[%emt 0:00:34]} 29. Bd3 {[%emt 0:00:00]} Qxe4 {[%emt 0:00:17]} 30. Qb3+ {[%emt 0:00:23]} Kh7 {[%emt 0:01:13]} 31. Rxc3 {[%emt 0:00:20]} 0-1

[Event "WSCC 65 Open 2017"]
[Site "?"]
[Date "2017.11.10"]
[Round "4"]
[White "Vasiukov, Evgeni"]
[Black "Barle, Janez"]
[Result "0-1"]
[ECO "A02"]
[WhiteElo "2404"]
[BlackElo "2261"]
[PlyCount "20"]
[EventDate "2017.??.??"]
[EventType "swiss"]
[EventCountry "ITA"]
[SourceTitle "Acqui Terme"]
[TimeControl "40/5400+30:1800+30"]

1. f4 Nf6 2. g3 c5 3. Bg2 Nc6 4. e4 d6 5. d3 g6 6. Nf3 Bg7 7. O-O O-O 8. Nc3 Bg4 9. h3 Bxf3 10. Qxf3 Nd7 0-1

[Event "WSCC 65 Open 2017"]
[Site "?"]
[Date "2017.11.10"]
[Round "4"]
[White "Vogt, Lothar"]
[Black "Hess, Christian"]
[Result "1/2-1/2"]
[ECO "B14"]
[WhiteElo "2398"]
[BlackElo "2236"]
[PlyCount "29"]
[EventDate "2017.??.??"]
[EventType "swiss"]
[EventCountry "ITA"]
[SourceTitle "Acqui Terme"]
[TimeControl "40/5400+30:1800+30"]
[WhiteClock "1:08:48"]
[BlackClock "1:00:53"]

1. e4 {[%emt 0:00:00]} c6 {[%emt 0:00:08]} 2. d4 {[%emt 0:00:00]} d5 {[%emt 0:00:06]} 3. exd5 {[%emt 0:00:00]} cxd5 {[%emt 0:00:05]} 4. c4 {[%emt 0:00:00]} Nf6 {[%emt 0:00:10]} 5. Nc3 {[%emt 0:00:00]} e6 {[%emt 0:00:46]} 6. Nf3 {[%emt 0:00:00]} Bb4 {[%emt 0:00:45]} 7. Bd3 {[%emt 0:00:00]} dxc4 {[%emt 0:01:22]} 8. Bxc4 {[%emt 0:00:04]} O-O {[%emt 0:00:10]} 9. O-O {[%emt 0:00:11]} b6 {[%emt 0:02:01]} 10. Bg5 {[%emt 0:09:14]} Bb7 {[%emt 0:01:46]} 11. Qe2 {[%emt 0:00:03]} Nbd7 {[%emt 0:11:51]} 12. Rfd1 {[%emt 0:02:32]} Bxc3 {[%emt 0:02:42]} 13. bxc3 {[%emt 0:00:03]} Qc7 {[%emt 0:00:10]} 14. Rac1 {[%emt 0:06:13]} Ne4 {[%emt 0:14:35]} 15. Bd3 {[%emt 0:10:22]} 1/2-1/2

[Event "WSCC 65 Open 2017"]
[Site "?"]
[Date "2017.11.10"]
[Round "4"]
[White "Van Riemsdijk, Herman C"]
[Black "Yakimenko, Alexander A"]
[Result "1/2-1/2"]
[ECO "C41"]
[WhiteElo "2284"]
[BlackElo "2115"]
[PlyCount "48"]
[EventDate "2017.??.??"]
[EventType "swiss"]
[EventCountry "ITA"]
[SourceTitle "Acqui Terme"]
[TimeControl "40/5400+30:1800+30"]
[WhiteClock "0:32:14"]
[BlackClock "0:15:13"]

1. e4 {[%emt 0:00:00]} e5 {[%emt 0:00:17]} 2. Nf3 {[%emt 0:00:00]} d6 {[%emt 0:00:52]} 3. d4 {[%emt 0:00:07]} Nf6 {[%emt 0:00:12]} 4. Nc3 {[%emt 0:00:15]} Nbd7 {[%emt 0:00:08]} 5. Bc4 {[%emt 0:01:17]} Be7 {[%emt 0:00:18]} 6. O-O {[%emt 0:01:22]} O-O {[%emt 0:00:23]} 7. Re1 {[%emt 0:01:54]} c6 {[%emt 0:02:48]} 8. a4 {[%emt 0:00:29]} h6 {[%emt 0:04:52]} 9. h3 {[%emt 0:01:48]} Re8 {[%emt 0:02:38]} 10. Ba2 {[%emt 0:01:31]} a5 {[%emt 0:03:52]} 11. Nh4 {[%emt 0:08:41]} Nf8 {[%emt 0:05:42]} 12. dxe5 {[%emt 0:00:52]} dxe5 {[%emt 0:00:18]} 13. Qf3 {[%emt 0:00:24]} Be6 {[%emt 0:19:31]} 14. Nf5 {[%emt 0:01:48]} Bxa2 {[%emt 0:02:38]} 15. Rxa2 {[%emt 0:00:57]} Ng6 {[%emt 0:03:29]} 16. Be3 {[%emt 0:01:02]} Nh7 {[%emt 0:07:25]} 17. g3 {[%emt 0:04:48]} Bb4 {[%emt 0:06:23]} 18. h4 {[%emt 0:07:13]} Ne7 {[%emt 0:09:55]} 19. Rd1 {[%emt 0:01:24]} Qc7 {[%emt 0:00:27]} 20. Bxh6 {[%emt 0:01:37]} Nxf5 {[%emt 0:01:28]} 21. Qxf5 {[%emt 0:00:34]} Rad8 {[%emt 0:05:09]} 22. Qg4 {[%emt 0:00:41]} Bf8 {[%emt 0:06:03]} 23. Raa1 {[%emt 0:04:25]} Qb6 {[%emt 0:02:12]} 24. Rxd8 {[%emt 0:26:37]} Rxd8 {[%emt 0:00:17]} 1/2-1/2

[Event "WSCC 65 Open 2017"]
[Site "?"]
[Date "2017.11.10"]
[Round "4"]
[White "Malisov, Boris"]
[Black "Komljenovic, Davorin"]
[Result "1/2-1/2"]
[ECO "B23"]
[WhiteElo "2240"]
[BlackElo "2379"]
[PlyCount "66"]
[EventDate "2017.??.??"]
[EventType "swiss"]
[EventCountry "ITA"]
[SourceTitle "Acqui Terme"]
[TimeControl "40/5400+30:1800+30"]
[WhiteClock "0:12:13"]
[BlackClock "0:03:40"]

1. e4 {[%emt 0:00:00]} c5 {[%emt 0:16:35]} 2. Nc3 Nc6 {[%emt 0:00:18]} 3. f4 {[%emt 0:01:15]} g6 {[%emt 0:00:49]} 4. Nf3 {[%emt 0:00:33]} Bg7 {[%emt 0:00:06]} 5. Bb5 {[%emt 0:00:08]} Nd4 {[%emt 0:00:45]} 6. a4 {[%emt 0:00:10]} Nxb5 {[%emt 0:12:06]} 7. axb5 {[%emt 0:00:12]} Nf6 {[%emt 0:01:00]} 8. O-O {[%emt 0:01:44]} O-O {[%emt 0:17:11]} 9. d3 {[%emt 0:01:35]} d6 {[%emt 0:06:43]} 10. Qe1 {[%emt 0:00:47]} Ne8 {[%emt 0:02:42]} 11. f5 {[%emt 0:07:49]} gxf5 {[%emt 0:03:55]} 12. Qh4 {[%emt 0:00:16]} f6 {[%emt 0:07:35]} 13. exf5 {[%emt 0:13:47]} Bxf5 {[%emt 0:00:16]} 14. Qc4+ {[%emt 0:00:32]} Kh8 {[%emt 0:05:55]} 15. Nh4 {[%emt 0:00:37]} Bd7 {[%emt 0:02:17]} 16. Nf5 {[%emt 0:19:27]} Bxf5 {[%emt 0:02:03]} 17. Rxf5 {[%emt 0:00:01]} Nc7 {[%emt 0:02:04]} 18. Qh4 {[%emt 0:03:13]} Qe8 {[%emt 0:02:04]} 19. Ra4 {[%emt 0:04:36]} Qg6 {[%emt 0:01:06]} 20. Qh3 {[%emt 0:06:08]} e6 {[%emt 0:03:50]} 21. Rh5 {[%emt 0:00:39]} f5 {[%emt 0:00:54]} 22. Rah4 {[%emt 0:05:28]} Bd4+ {[%emt 0:00:00]} 23. Kh1 {[%emt 0:02:19]} Rf7 {[%emt 0:00:03]} 24. Rh6 {[%emt 0:06:28]} Qg8 {[%emt 0:01:05]} 25. Ne2 {[%emt 0:01:56]} Bf6 {[%emt 0:02:52]} 26. R4h5 {[%emt 0:00:23]} Nd5 {[%emt 0:06:00]} 27. c4 {[%emt 0:02:07]} Ne7 {[%emt 0:01:42]} 28. Nf4 {[%emt 0:00:20]} Qg4 {[%emt 0:00:25]} 29. Rxh7+ {[%emt 0:01:39]} Rxh7 {[%emt 0:00:04]} 30. Rxh7+ {[%emt 0:00:55]} Kg8 {[%emt 0:00:07]} 31. Qxg4+ {[%emt 0:00:29]} fxg4 {[%emt 0:00:05]} 32. Rh6 {[%emt 0:00:26]} Kf7 {[%emt 0:00:39]} 33. Rh7+ {[%emt 0:08:18]} Kg8 {[%emt 0:00:04]} 1/2-1/2

[Event "WSCC 65 Open 2017"]
[Site "?"]
[Date "2017.11.10"]
[Round "4"]
[White "Frick, Christoph"]
[Black "Pushkov, Nikolai"]
[Result "1/2-1/2"]
[ECO "A45"]
[WhiteElo "2230"]
[BlackElo "2304"]
[PlyCount "72"]
[EventDate "2017.??.??"]
[EventType "swiss"]
[EventCountry "ITA"]
[SourceTitle "Acqui Terme"]
[TimeControl "40/5400+30:1800+30"]

1. d4 Nf6 2. Bf4 e6 3. e3 b6 4. Nf3 Bb7 5. Nbd2 Be7 6. h3 O-O 7. Bd3 d5 8. O-O Nbd7 9. Ne5 Nxe5 10. Bxe5 g6 11. Qf3 Nd7 12. Bf4 f5 13. Qg3 c5 14. c3 Nf6 15. Bh6 Bd6 16. f4 Rf7 17. Nf3 Rc7 18. Ne5 Nh5 19. Qf2 a5 20. g4 Ng7 21. Bg5 Qe8 22. Qe2 c4 23. Bc2 b5 24. Kg2 b4 25. Rh1 Bc6 26. Bf6 bxc3 27. bxc3 Ba4 28. Rab1 Bxc2 29. Qxc2 Rb8 30. Rxb8 Qxb8 31. Rb1 Rb7 32. Rxb7 Qxb7 33. Qa4 Bxe5 34. Bxe5 Qb2+ 35. Kg3 Qe2 36. Qd7 Qe1+ 1/2-1/2